bitfinex/quotes_ETHUSD_20241105
["timestamp","ask_amount","ask_price","bid_price","bid_amount"]
[1730837510654,0.04488211,2429.8,2429.3,5.016899]
[1730837511072,0.04488211,2429.8,2429.4,4.11613]
[1730837511276,0.04488211,2429.8,2429.5,4.11598]
[1730837511483,0.04488211,2429.8,2429.4,4.11613]
[1730837511654,0.04488211,2429.8,2429.3,4.11631]
[1730837512180,0.04488211,2429.8,2429.4,4.11615]
[1730837512364,0.04488211,2429.8,2429.4,4.939396]
[1730837512540,0.04488211,2429.8,2429.4,0.823246]
[1730837512744,0.04488211,2429.8,2429.5,4.11601]
[1730837512988,0.04488211,2429.8,2429.1,0.7736]
[1730837513147,0.04488211,2429.8,2429.7,4.11573]
[1730837513489,0.7794,2430.2,2429.7,4.938893]
[1730837513661,4.26974908,2430.0,2429.5,3.0]
[1730837513845,0.04576724,2429.9,2429.5,7.11607]
[1730837514182,0.04576724,2429.9,2429.5,3.0]
[1730837515101,0.04576724,2429.9,2429.5,7.11603]
[1730837515271,0.04576724,2429.9,2429.6,4.1159]
[1730837515452,0.04576724,2429.9,2429.6,0.71159]
[1730837515979,0.04576724,2429.9,2429.6,4.82747]
[1730837517464,3.75196878,2429.7,2429.3,4.11636]
[1730837517658,3.75196878,2429.7,2429.4,8.23236]
[1730837517659,0.04547759,2429.6,2429.4,8.23236]
[1730837517868,0.04547759,2429.6,2429.4,4.11615]
[1730837518076,3.75196878,2429.7,2429.4,4.11615]
[1730837518478,0.04547178,2429.6,2429.4,4.11615]
[1730837518847,0.04547178,2429.6,2429.3,3.0]
[1730837519153,0.04547178,2429.6,2428.9,4.11708]
[1730837519154,3.75196878,2429.4,2428.9,4.11708]
[1730837519559,0.04349666,2429.3,2428.9,4.11708]
[1730837520249,0.04349666,2429.3,2428.9,3.0]
[1730837520480,0.8188,2429.2,2428.9,3.0]
[1730837520678,0.0431777,2429.1,2428.9,3.0]
[1730837520987,0.0431777,2429.1,2428.6,4.11746]
[1730837520988,3.79514648,2429.1,2428.6,4.11746]
[1730837521205,7.91189648,2429.1,2428.4,4.11781]
[1730837521367,0.0431777,2429.1,2428.6,4.11757]
[1730837521956,0.0431777,2429.1,2428.8,4.11718]
[1730837522174,0.0431777,2429.1,2428.8,8.23433]
[1730837522659,0.0431777,2429.1,2428.6,8.23518]
[1730837522857,0.0431777,2429.1,2429.0,4.11692]
[1730837524593,0.0431777,2429.1,2428.6,4.1175]
[1730837524824,7.91198648,2429.1,2428.5,3.0]
[1730837524984,4.11693,2429.0,2428.4,4.1178]
[1730837525157,4.11711,2428.9,2428.3,4.11806]
[1730837525353,3.75196878,2428.5,2427.9,4.11867]
[1730837525599,7.86983878,2428.5,2427.9,8.23734]
[1730837525772,0.04240918,2428.4,2428.0,4.11858]
[1730837525971,0.04240918,2428.4,2428.3,4.1181]
[1730837526161,0.8125,2428.7,2428.2,8.23628]
[1730837526351,0.04205436,2428.4,2428.2,8.23628]
[1730837526555,0.8125,2428.7,2428.2,8.23629]
[1730837527070,0.04225069,2428.6,2428.2,4.11813]
[1730837527266,0.04225069,2428.6,2428.3,4.1181]
[1730837528186,0.04225069,2428.6,2428.4,4.11793]
[1730837529590,0.04225069,2428.6,2428.4,4.11781]
[1730837530167,0.04225069,2428.6,2428.1,3.0]
[1730837530370,0.04225069,2428.6,2428.0,4.11851]
[1730837530584,0.04225069,2428.6,2428.3,4.1181]
[1730837530991,0.04225069,2428.6,2428.4,4.11788]
[1730837531860,4.15993069,2428.6,2427.9,4.11875]
[1730837532200,8.27767069,2428.6,2428.0,4.11861]
[1730837532404,4.94879,2428.5,2427.7,4.11905]
[1730837532573,4.61709407,2428.4,2427.8,4.11895]
[1730837532780,4.11812,2428.3,2427.7,4.11905]
[1730837532986,0.817,2428.2,2427.7,4.11905]
[1730837533189,0.85780254,2428.2,2427.7,4.11905]
[1730837533503,0.85780254,2428.2,2427.8,4.11891]
[1730837533686,1.4052962,2428.2,2427.5,4.1193]
[1730837533892,1.4052962,2428.2,2427.3,4.11968]
[1730837534060,5.5236062,2428.2,2427.4,4.11962]
[1730837534370,4.11864,2428.0,2427.4,4.11962]
[1730837534812,0.04102237,2427.9,2427.4,4.11962]
[1730837534967,0.04102237,2427.9,2427.3,8.23936]
[1730837535167,0.04102237,2427.9,2427.1,4.12002]
[1730837535168,0.759,2427.8,2427.1,4.12002]
[1730837535406,4.11914,2427.7,2427.1,4.12002]
[1730837535563,4.11948,2427.5,2426.9,4.89706]
[1730837535759,4.16010847,2427.7,2427.1,4.12002]
[1730837535959,0.04105967,2427.4,2427.1,4.12002]
[1730837536172,4.11914,2427.7,2427.1,4.12013]
[1730837536400,0.04094667,2427.3,2427.2,4.11997]
[1730837536578,0.759,2427.8,2427.2,4.11997]
[1730837536777,0.04038356,2427.3,2427.2,4.11997]
[1730837537118,4.87804,2427.8,2426.9,3.7767]
[1730837537119,0.759,2427.8,2427.5,4.11943]
[1730837537478,0.759,2427.8,2427.5,8.23876]
[1730837537676,0.04078399,2427.7,2427.6,4.1192]
[1730837537878,0.7564,2428.1,2427.7,4.1191]
[1730837538191,0.04225742,2428.0,2427.7,4.11903]
[1730837538521,0.04225742,2428.0,2427.7,8.23806]
[1730837538709,0.04225742,2428.0,2427.8,4.11894]
[1730837539038,0.04225742,2428.0,2427.9,7.11878]
[1730837539317,4.27541728,2429.1,2427.9,7.11878]
[1730837539318,0.7878,2428.8,2428.6,4.11757]
[1730837539524,0.7878,2429.2,2428.8,4.11725]
[1730837539707,0.7878,2429.2,2428.9,4.11708]
[1730837540031,1.26809684,2429.7,2429.4,4.11611]
[1730837540600,1.26809684,2429.8,2429.4,4.11611]
[1730837540822,0.7878,2429.9,2429.4,4.11611]
[1730837541424,0.03932634,2429.8,2429.5,4.11594]
[1730837541718,0.03932634,2429.8,2429.4,4.11611]
[1730837542028,0.03932634,2429.8,2429.7,4.11573]
[1730837542314,0.7669,2430.2,2429.7,7.19803707]
[1730837542526,4.11439,2430.5,2429.9,4.11535]
[1730837542527,0.7669,2430.5,2429.9,4.11535]
[1730837542686,0.7669,2430.5,2429.8,7.11556]
[1730837542880,4.88143,2430.5,2429.9,4.11537]
[1730837543088,0.49407191,2430.4,2429.8,3.0]
[1730837543386,4.11484,2430.3,2429.6,3.0]
[1730837543591,0.49407191,2430.4,2429.7,4.11572]
[1730837543927,4.11473,2430.3,2429.6,3.0]
[1730837544092,4.11473,2430.3,2429.6,7.1159]
[1730837544431,0.46088019,2430.2,2429.6,7.1159]
[1730837544791,4.11535,2430.0,2429.3,4.11634]
[1730837544992,4.92102996,2430.1,2429.2,4.11644]
[1730837545193,0.04099204,2429.9,2429.4,4.11622]
[1730837545423,0.04112539,2430.0,2429.4,4.11622]
[1730837545627,0.57943195,2430.0,2429.4,4.11622]
[1730837545837,0.04092949,2429.8,2429.4,4.11622]
[1730837546035,0.04106284,2429.9,2429.4,4.11613]
[1730837546338,0.04073503,2429.8,2429.6,4.1159]
[1730837546512,0.766,2430.1,2429.6,4.1159]
[1730837546837,0.04174124,2430.0,2429.6,4.1159]
[1730837547143,0.04174124,2430.0,2429.5,4.11601]
[1730837548003,0.04174124,2430.0,2429.6,4.11585]
[1730837548633,0.04174124,2430.0,2429.5,3.0]
[1730837548843,4.1154,2429.9,2429.5,3.0]
[1730837549129,0.04140879,2429.8,2429.3,3.0]
[1730837549346,0.04140879,2429.8,2429.3,7.11638]
[1730837549500,0.7824,2429.5,2428.8,4.11719]
[1730837549696,4.15730167,2429.4,2428.8,8.23435]
[1730837550022,4.15730167,2429.4,2428.8,4.11715]
[1730837550553,0.04106167,2429.4,2428.7,4.11739]
[1730837550753,4.11655,2429.3,2428.8,4.11723]
[1730837551210,4.27541728,2428.9,2428.0,1.67578204]
[1730837551412,0.7824,2428.6,2428.0,0.86018204]
[1730837551736,0.037048,2428.5,2428.0,0.86018204]
[1730837552035,4.154858,2428.5,2428.0,0.86018204]
[1730837552736,4.11844,2428.1,2428.0,0.86018204]
[1730837552941,0.03634924,2428.1,2428.0,0.86018204]
[1730837553347,0.03634924,2428.1,2427.6,4.11926]
[1730837553634,0.03634924,2428.1,2427.8,4.11892]
[1730837553995,0.03634924,2428.1,2427.6,4.11926]
[1730837554499,0.03634924,2428.1,2427.4,4.11954]
[1730837554500,4.11863,2428.0,2427.5,3.0]
[1730837554705,0.0367085,2427.9,2427.5,3.0]
[1730837554906,4.1556085,2427.9,2427.3,4.11979]
[1730837555104,0.0367085,2427.9,2427.4,4.11963]
[1730837555317,0.03621737,2427.8,2427.2,0.7682]
[1730837555521,9.27809684,2428.9,2427.7,4.88732]
[1730837555522,4.1172,2428.9,2427.7,4.88732]
[1730837555755,4.1172,2428.9,2428.1,4.11833]
[1730837555953,4.1172,2428.9,2428.0,0.08236397]
[1730837556159,5.440602,2428.9,2428.1,4.11844]
[1730837556305,4.11786,2428.5,2428.0,3.0]
[1730837557060,4.11786,2428.5,2428.0,7.11858]
[1730837557354,4.11786,2428.5,2428.0,3.0]
[1730837557554,4.11786,2428.5,2428.0,7.11861]
[1730837557703,4.11797,2428.4,2427.7,4.88721]
[1730837557904,4.11811,2428.3,2427.7,9.00621]
[1730837558103,4.11811,2428.3,2427.7,8.23802]
[1730837558354,4.941397,2428.5,2427.5,4.11936]
[1730837558355,0.7798,2428.2,2427.5,4.11936]
[1730837558717,4.11878,2427.9,2427.3,4.11966]
[1730837558877,4.11912,2427.7,2427.1,4.12004]
[1730837559373,4.11912,2427.7,2426.9,4.12033]
[1730837559553,4.11912,2427.7,2427.1,4.12009]
[1730837559554,8.23838,2427.7,2427.1,4.12009]
[1730837559948,4.1193,2427.6,2427.1,4.12009]
[1730837560276,1.191678,2427.8,2427.3,4.1197]
[1730837560277,0.7798,2427.8,2427.3,4.1197]
[1730837560478,4.89877,2427.8,2427.3,4.1197]
[1730837560781,5.388647,2427.8,2427.3,4.1197]
[1730837561138,4.11916,2427.7,2427.1,4.12005]
[1730837561535,4.11916,2427.7,2427.1,4.12]
[1730837562238,4.11916,2427.7,2427.1,8.24004]
[1730837562454,4.11916,2427.7,2427.1,8.24005]
[1730837562661,5.0699327,2427.7,2427.1,4.12]
[1730837563107,4.11939,2427.6,2427.1,4.12]
[1730837563399,5.0699327,2427.7,2426.9,7.12037]
[1730837563584,4.11938,2427.6,2427.1,7.12013]
[1730837563773,5.0699327,2427.7,2427.1,7.12013]
[1730837564187,0.9507727,2427.7,2427.3,4.11977]
[1730837564497,5.0699727,2427.7,2427.1,7.12004]
[1730837564696,0.7798,2427.8,2427.3,4.11966]
[1730837564880,0.7798,2427.8,2427.3,8.23937]
[1730837565201,9.01786,2427.8,2427.3,4.11966]
[1730837565360,9.919646,2427.8,2427.3,4.11966]
[1730837565702,5.800546,2427.8,2427.3,4.11966]
[1730837565859,0.7798,2427.8,2427.4,4.1196]
[1730837566684,0.7798,2427.8,2427.5,4.11945]
[1730837567071,0.7798,2427.8,2427.4,4.1196]
[1730837567292,0.7798,2427.8,2427.5,4.11944]
[1730837567459,0.8154,2428.1,2427.8,4.11893]
[1730837567661,0.8154,2428.1,2427.8,8.23775]
[1730837567887,0.8154,2428.1,2427.8,4.11882]
[1730837568498,0.8154,2428.4,2428.0,4.11861]
[1730837568785,0.8154,2428.4,2427.9,4.11869]
[1730837568786,1.81860043,2428.4,2427.9,4.11869]
[1730837568970,1.81860043,2428.4,2427.9,8.23736]
[1730837569173,0.8154,2428.4,2427.9,4.11867]
[1730837569379,1.66138701,2428.7,2428.2,4.11814]
[1730837569886,1.66138701,2428.7,2428.3,4.11809]
[1730837570275,1.66138701,2428.7,2428.3,4.1181]
[1730837570472,1.66138701,2428.7,2428.5,4.11767]
[1730837570670,0.84598701,2428.7,2428.5,4.11767]
[1730837570871,0.84598701,2428.7,2428.6,4.11759]
[1730837571305,0.8154,2429.0,2428.6,4.11759]
[1730837572281,0.8154,2429.0,2428.7,4.11741]
[1730837574375,0.8154,2429.0,2428.5,4.11762]
[1730837574376,4.93239,2429.0,2428.5,4.11762]
[1730837574602,4.93239,2429.0,2428.3,4.11808]
[1730837574603,4.11728,2428.8,2428.3,4.11808]
[1730837574803,3.75461688,2428.9,2428.1,3.0]
[1730837575030,4.11763,2428.6,2428.1,4.11844]
[1730837575189,0.7604,2428.5,2427.9,4.11872]
[1730837575517,0.7604,2428.0,2427.4,4.92492]
[1730837575689,0.487893,2427.9,2427.4,4.11952]
[1730837575892,0.487893,2427.9,2427.5,4.11934]
[1730837576212,0.487893,2427.9,2427.4,4.11952]
[1730837576213,0.487893,2427.9,2427.6,4.11927]
[1730837576433,0.487893,2427.9,2427.6,4.1192]
[1730837577119,0.487893,2427.9,2427.7,4.11909]
[1730837577275,0.7604,2428.0,2427.7,4.11909]
[1730837577516,0.7659,2428.3,2427.8,4.11884]
[1730837577715,0.7659,2428.3,2427.9,4.11871]
[1730837578017,0.7659,2428.3,2427.8,4.11884]
[1730837578018,4.88401,2428.3,2427.8,4.11884]
[1730837578217,4.88401,2428.3,2427.6,8.23831]
[1730837578459,0.488401,2428.2,2427.4,3.0]
[1730837578661,0.488401,2428.2,2426.6,4.12099]
[1730837578662,4.12016,2427.1,2426.6,4.12099]
[1730837578866,0.7874,2427.2,2426.7,4.12071]
[1730837579025,0.7874,2427.2,2426.8,4.12063]
[1730837579218,0.7874,2427.7,2427.4,4.11953]
[1730837579459,2.10947971,2427.9,2427.2,4.11997]
[1730837579619,2.10947971,2427.9,2427.8,4.11895]
[1730837580257,1.26809684,2428.0,2427.8,4.11895]
[1730837580919,1.26809684,2428.0,2427.8,4.11884]
[1730837581117,1.26809684,2428.0,2427.9,7.61851164]
[1730837581530,1.26809684,2428.0,2427.9,8.41461164]
[1730837584166,1.26809684,2428.0,2427.9,8.97461164]
[1730837584368,1.26809684,2428.0,2427.9,8.42461164]
[1730837584862,2.51349579,2429.2,2429.0,4.11691]
[1730837585075,1.69079579,2429.2,2429.0,4.11691]
[1730837585244,0.8227,2429.5,2429.0,4.11682]
[1730837585449,0.8227,2429.5,2429.3,4.11641]
[1730837585669,0.8227,2429.5,2429.0,7.11688]
[1730837585670,4.11608,2429.5,2429.0,7.11688]
[1730837585972,4.11608,2429.5,2428.7,0.8302]
[1730837585973,4.11635,2429.4,2428.8,3.0]
[1730837586171,0.8165,2429.3,2428.9,4.11699]
[1730837586681,0.8165,2429.3,2428.8,7.1172]
[1730837586879,4.93297,2429.3,2428.8,3.0]
[1730837587383,4.93297,2429.3,2428.5,4.11774]
[1730837587384,4.11668,2429.2,2428.5,4.11763]
[1730837587679,0.8165,2429.3,2428.8,4.11714]
[1730837587878,0.8165,2429.3,2428.7,3.0]
[1730837588039,4.11692,2429.0,2428.5,3.0]
[1730837588240,0.7811,2429.0,2428.4,4.11777]
[1730837588444,4.606891,2428.9,2428.2,4.11812]
[1730837588643,4.606891,2428.9,2428.3,4.1181]
[1730837588644,8.7604959,2428.9,2428.3,4.1181]
[1730837588884,4.606891,2428.9,2428.3,4.1181]
[1730837589056,0.489801,2428.9,2428.4,8.23562]
[1730837589251,0.489801,2428.9,2428.4,4.11779]
[1730837589451,0.5387841,2428.8,2428.4,4.11779]
[1730837589663,0.5387841,2428.8,2428.3,3.0]
[1730837589873,0.7883,2428.5,2427.9,4.11872]
[1730837590191,0.5387841,2428.8,2428.4,4.11793]
[1730837590192,1.3270841,2428.8,2428.4,4.11793]
[1730837590340,0.03621886,2428.7,2428.4,4.11793]
[1730837590540,0.7883,2428.8,2428.4,4.11793]
[1730837590764,0.7883,2428.8,2428.2,4.11814]
[1730837590765,4.11742,2428.7,2428.2,4.11814]
[1730837591740,4.11797,2428.4,2427.8,4.11883]
[1730837591944,0.8309,2428.6,2428.3,4.11798]
[1730837592180,5.80761579,2429.1,2428.1,0.7517]
[1730837592181,0.84191631,2429.1,2428.1,0.7517]
[1730837592384,0.84191631,2429.1,2428.9,4.11704]
[1730837592385,0.0362324,2429.0,2428.9,4.11704]
[1730837592554,0.84191631,2429.1,2429.0,4.11692]
[1730837592742,0.8309,2429.3,2429.2,4.11658]
[1730837592947,1.69079579,2429.7,2429.6,4.1159]
[1730837593168,1.69079579,2429.7,2429.6,7.1159]
[1730837593449,2.10911945,2429.9,2429.7,3.0]
[1730837593652,2.10911945,2429.9,2429.4,7.11622]
[1730837593869,0.62244094,2429.8,2429.4,3.0]
[1730837594051,2.10911945,2429.9,2429.5,4.11604]
[1730837594258,2.10911945,2429.9,2429.6,4.11578]
[1730837594653,2.10911945,2429.9,2429.5,4.11604]
[1730837594851,4.94607,2430.1,2429.5,4.11604]
[1730837595977,0.8309,2430.1,2429.7,4.11572]
[1730837596785,0.8309,2430.1,2429.8,4.11541]
[1730837597383,4.1154,2429.9,2429.4,3.0]
[1730837597567,0.49463,2429.9,2429.4,3.0]
[1730837597881,0.8309,2430.1,2429.9,4.11523]
[1730837598085,0.8309,2430.1,2429.7,4.11562]
[1730837598256,4.94604,2430.1,2429.5,4.11604]
[1730837598456,4.94604,2430.1,2429.6,3.0]
[1730837598768,0.8309,2430.1,2429.8,4.11551]
[1730837599083,0.8309,2430.1,2430.0,4.11522]
[1730837599393,4.11483,2430.3,2429.6,7.1158]
[1730837599559,4.11483,2430.3,2429.8,4.11554]
[1730837599764,4.93239,2429.9,2429.2,4.11658]
[1730837600136,4.93239,2429.9,2429.0,4.11676]
[1730837600137,4.116,2429.6,2429.0,4.11676]
[1730837600274,4.116,2429.6,2428.9,0.767]
[1730837600275,0.493239,2429.8,2428.6,0.777]
[1730837600479,0.493239,2429.8,2429.3,8.23263]
[1730837600720,0.493239,2429.8,2429.4,4.11609]
[1730837601016,0.817,2429.9,2429.7,4.11569]
[1730837601228,0.817,2429.9,2429.8,4.11556]
[1730837601525,0.0592891,2430.6,2430.4,4.11446]
[1730837602396,0.0592891,2430.6,2430.5,4.11437]
[1730837602602,0.0592891,2430.6,2430.2,4.11478]
[1730837602787,0.0592891,2430.6,2430.3,4.11468]
[1730837603100,8.78684401,2430.6,2430.1,3.0]
[1730837603302,0.55831401,2430.6,2429.8,4.11544]
[1730837603595,0.817,2430.2,2429.8,4.11556]
[1730837604011,0.817,2430.2,2429.7,3.0]
[1730837604012,4.93189,2430.2,2429.7,3.0]
[1730837604207,0.817,2430.2,2429.7,4.1156]
[1730837604392,0.493186,2430.1,2429.8,4.11554]
[1730837604592,0.493186,2430.1,2429.6,4.11574]
[1730837604833,0.493186,2430.1,2429.4,4.11608]
[1730837604834,4.11523,2430.0,2429.4,4.11608]
[1730837605134,4.11523,2430.0,2429.2,0.767]
[1730837605135,4.608256,2430.1,2429.6,4.11586]
[1730837605494,4.608256,2430.1,2429.5,4.11606]
[1730837605693,0.5425256,2430.0,2429.7,4.11571]
[1730837605996,0.817,2430.2,2429.7,4.11563]
[1730837606431,4.11505,2430.1,2429.6,4.11585]
[1730837607037,4.11505,2430.1,2429.7,4.11573]
[1730837607594,0.817,2430.2,2429.7,4.11573]
[1730837607799,4.93189,2430.2,2429.7,4.11573]
[1730837608040,0.904662,2430.1,2429.7,4.11573]
[1730837608200,5.019732,2430.1,2429.5,4.11593]
[1730837608399,4.94574,2430.0,2429.5,4.11593]
[1730837608807,0.8304,2430.0,2429.5,4.11593]
[1730837609439,0.8304,2430.0,2429.6,4.11577]
[1730837609600,4.9457,2430.0,2429.4,4.11611]
[1730837609803,4.9457,2430.0,2429.5,3.0]
[1730837610014,4.9457,2430.0,2429.4,4.11611]
[1730837610015,0.49457,2429.9,2429.4,4.11611]
[1730837610211,4.60997,2429.9,2429.4,4.11611]
[1730837610547,0.49457,2429.9,2429.7,4.11563]
[1730837610838,0.8304,2430.0,2429.1,0.08231588]
[1730837611008,0.8304,2430.0,2429.7,4.11572]
[1730837611421,0.8304,2430.0,2429.5,8.23191]
[1730837611732,4.94562,2430.0,2429.5,4.11595]
[1730837612100,9.06095,2430.0,2429.5,4.11595]
[1730837612303,9.06095,2430.0,2429.4,0.08231773]
[1730837612304,0.906095,2429.9,2429.4,0.08231773]
[1730837612618,0.7954,2430.3,2429.5,0.796]
[1730837612801,0.8546891,2430.6,2430.3,4.11471]
[1730837613000,0.0361113,2430.3,2430.2,7.11488]
[1730837613234,0.0592891,2430.6,2430.4,4.11441]
[1730837613447,0.0592891,2430.6,2430.5,4.11437]
[1730837613648,0.0592891,2430.6,2430.4,4.11441]
[1730837613998,0.0592891,2430.6,2430.5,4.11437]
[1730837616018,0.0592891,2430.6,2430.5,7.11437]
[1730837617239,0.0592891,2430.6,2430.5,7.19665101]
[1730837617646,0.0592891,2430.6,2430.5,8.40499691]
[1730837617836,0.0592891,2430.6,2430.5,8.3227261]
[1730837618012,0.0592891,2430.6,2430.5,7.11437]
[1730837619611,0.8679891,2430.6,2430.5,3.0]
[1730837620005,0.8679891,2430.6,2430.4,4.11441]
[1730837620240,0.8679891,2430.6,2430.2,4.11476]
[1730837620241,0.8679891,2430.6,2430.3,4.11471]
[1730837620405,0.8679891,2430.6,2430.4,4.11441]
[1730837620606,0.8679891,2430.6,2430.5,4.11437]
[1730837620910,0.8679891,2430.6,2430.4,4.11441]
[1730837621411,0.0592891,2430.6,2430.5,4.11437]
[1730837622240,0.0592891,2430.6,2430.4,4.11441]
[1730837622806,0.0592891,2430.6,2430.4,8.22886]
[1730837623009,0.0592891,2430.6,2430.4,4.11441]
[1730837623649,0.0592891,2430.6,2430.3,3.0]
[1730837623851,0.0592891,2430.6,2430.3,7.11456]
[1730837624005,4.1735191,2430.6,2430.2,4.11473]
[1730837624208,4.1735191,2430.6,2429.8,4.11551]
[1730837624209,0.7552,2430.4,2429.8,4.11551]
[1730837624510,0.7552,2430.4,2430.0,8.23026]
[1730837624709,0.7552,2430.4,2430.0,4.11512]
[1730837625029,0.7552,2430.4,2429.8,4.11543]
[1730837625233,0.7552,2430.4,2430.0,4.11521]
[1730837625546,0.52869519,2430.3,2429.8,4.11542]
[1730837625748,4.11519,2430.1,2429.6,4.11577]
[1730837626045,0.8137,2430.2,2429.5,0.08231315]
[1730837626356,0.41735191,2430.5,2429.9,4.11529]
[1730837626667,0.41735191,2430.5,2430.2,4.11472]
[1730837626668,0.7757,2430.4,2430.2,4.11472]
[1730837626820,0.7757,2430.4,2429.5,0.8067]
[1730837626821,0.7757,2430.4,2430.0,4.1151]
[1730837627167,0.7757,2430.4,2430.2,4.11486]
[1730837627520,0.7757,2430.4,2430.2,8.22964]
[1730837627744,0.7757,2430.4,2430.2,4.11478]
[1730837628059,4.52631028,2430.4,2429.9,3.0]
[1730837628363,0.86406903,2430.3,2429.9,7.11535]
[1730837629426,0.7757,2430.4,2430.1,4.115]
[1730837629822,0.7757,2430.4,2430.0,4.11513]
[1730837630252,0.7757,2430.4,2430.0,8.23027]
[1730837630557,0.7757,2430.4,2430.2,4.11478]
[1730837631763,0.0592891,2430.6,2430.3,4.11471]
[1730837632627,0.0592891,2430.6,2430.0,3.0]
[1730837632832,0.0592891,2430.6,2430.2,4.11476]
[1730837633771,0.7716,2430.5,2430.1,7.11503]
[1730837633980,0.7716,2430.5,2430.2,4.11484]
[1730837634286,0.0592891,2430.6,2430.2,4.11488]
[1730837634490,0.0592891,2430.6,2430.3,4.11459]
[1730837634644,0.0592891,2430.6,2430.3,4.1147]
[1730837634844,0.0592891,2430.6,2430.5,4.11437]
[1730837637253,0.0592891,2430.6,2430.5,7.19664994]
[1730837637627,0.0592891,2430.6,2430.5,7.11437]
[1730837641493,0.0592891,2430.6,2430.5,7.91277]
[1730837641788,9.1e-06,2430.6,2430.5,8.55503422]
[1730837641988,9.1e-06,2430.6,2430.5,9.86302322]
[1730837642192,9.1e-06,2430.6,2430.5,9.85302322]
[1730837642354,9.1e-06,2430.6,2430.5,9.86302322]
[1730837642555,9.1e-06,2430.6,2430.5,9.85302322]
[1730837642750,9.1e-06,2430.6,2430.5,9.86302322]
[1730837643065,9.1e-06,2430.6,2430.5,8.49462322]
[1730837646252,9.1e-06,2430.6,2430.5,7.11437]
[1730837646469,9.1e-06,2430.6,2430.5,7.19664643]
[1730837647071,9.1e-06,2430.6,2430.5,4.11437]
[1730837647802,9.1e-06,2430.6,2430.4,4.11449]
[1730837648101,9.1e-06,2430.6,2430.3,4.11457]
[1730837648288,9.1e-06,2430.6,2430.5,4.11437]
[1730837648807,9.1e-06,2430.6,2430.4,4.11445]
[1730837649097,9.1e-06,2430.6,2430.2,3.0]
[1730837649269,0.7539,2430.4,2429.6,4.11579]
[1730837649472,0.8032,2430.1,2429.5,8.23204]
[1730837649656,4.91834,2430.1,2429.5,8.23194]
[1730837650179,4.91832,2430.1,2429.5,4.11606]
[1730837650378,4.11539,2429.9,2429.4,0.86018204]
[1730837650554,4.11539,2429.9,2429.4,4.97638204]
[1730837650758,0.903371,2429.9,2429.4,0.86018204]
[1730837650960,0.8032,2430.1,2429.8,4.11546]
[1730837651192,0.8032,2430.1,2429.9,4.11528]
[1730837651389,0.8032,2430.1,2429.8,4.11546]
[1730837651695,0.8032,2430.1,2429.9,4.11537]
[1730837652475,0.8032,2430.1,2429.8,4.11546]
[1730837652713,0.8032,2430.1,2429.7,7.11573]
[1730837653128,0.8032,2430.1,2429.8,4.11555]
[1730837653440,0.7745,2429.8,2428.7,0.8197]
[1730837653604,0.7745,2429.8,2428.8,4.11725]
[1730837653924,0.7745,2429.8,2429.5,4.11598]
[1730837654333,0.7745,2429.8,2429.6,4.11587]
[1730837654491,0.7657,2430.1,2429.5,4.11607]
[1730837654833,0.7657,2430.4,2430.2,4.11487]
[1730837655599,0.7657,2430.4,2430.3,4.11471]
[1730837655814,0.7657,2430.4,2430.2,4.11487]
[1730837656014,1.61184683,2430.4,2430.1,3.0]
[1730837656208,1.61184683,2430.4,2430.1,7.115]
[1730837656500,1.61184683,2430.4,2430.2,4.11483]
[1730837657534,1.61184683,2430.4,2430.1,7.115]
[1730837657744,1.61184683,2430.4,2430.1,11.22996]
[1730837658110,4.11479,2430.3,2429.8,4.11545]
[1730837658332,6.59530981,2430.4,2429.8,3.0]
[1730837658525,4.11487,2430.3,2429.8,3.0]
[1730837658700,4.11487,2430.3,2429.8,7.11552]
[1730837659036,6.59530981,2430.4,2429.9,4.11537]
[1730837659719,6.59530981,2430.4,2429.8,3.0]
[1730837659720,4.1148,2430.3,2429.8,3.0]
[1730837660292,5.312733,2430.3,2429.8,3.0]
[1730837660434,4.11489,2430.2,2429.7,4.11561]
[1730837660758,4.11489,2430.2,2429.7,8.23125]
[1730837660959,1.197933,2430.3,2429.7,4.11561]
[1730837661173,0.84614683,2430.1,2429.8,4.11547]
[1730837661357,0.84614683,2430.1,2429.7,4.11561]
[1730837662063,0.84614683,2430.1,2429.7,8.23126]
[1730837662242,0.84614683,2430.1,2429.8,4.11555]
[1730837662433,0.84614683,2430.1,2429.5,3.0]
[1730837662637,0.84614683,2430.1,2429.5,0.3814]
[1730837662873,4.96128683,2430.1,2429.5,4.11593]
[1730837663072,0.84614683,2429.9,2429.5,7.11606]
[1730837663434,5.74607683,2430.0,2429.5,7.11606]
[1730837663773,0.84614683,2429.9,2429.5,7.11606]
[1730837664729,5.74607683,2430.0,2429.5,7.11606]
[1730837666650,1.63074683,2430.0,2429.5,3.0]
[1730837666850,1.63074683,2430.0,2429.6,4.11587]
[1730837667049,5.74599683,2430.0,2429.6,4.11587]
[1730837667351,5.74599683,2430.0,2429.5,7.11606]
[1730837668886,1.63074683,2430.0,2429.6,4.11589]
[1730837669067,5.74597683,2430.0,2429.5,7.11607]
[1730837669573,4.89983,2430.0,2429.5,7.11607]
[1730837669776,0.7846,2430.0,2429.8,4.11554]
[1730837669979,0.7846,2430.0,2429.8,4.11547]
[1730837670481,0.84614683,2430.2,2430.1,4.11505]
[1730837670783,1.65964683,2430.5,2430.3,4.11471]
[1730837670965,1.65964683,2430.5,2430.4,4.11454]
[1730837671172,0.8135,2430.5,2430.3,4.11471]
[1730837671355,0.8135,2430.5,2430.2,4.11488]
[1730837671881,0.8135,2430.5,2430.4,4.11454]
[1730837672041,0.84615593,2430.6,2430.4,4.11454]
[1730837672374,9.1e-06,2430.6,2430.4,4.11454]
[1730837672580,0.8036,2430.4,2429.9,4.11531]
[1730837672875,0.84582009,2430.2,2429.9,4.11529]
[1730837673175,2.07282024,2430.4,2430.0,4.11522]
[1730837673475,0.84582834,2430.3,2430.1,4.11505]